[Event "November 21 Early 2023"]
[Site "https://www.chess.com"]
[Date "2023.11.21"]
[Round "3"]
[White "Bokros, Albert"]
[Black "Saravana, Krishnan P."]
[Result "0-1"]
[Board "182"]
[TimeControl "180+1"]
[WhiteFideId "710458"]
[BlackFideId "5018382"]
[WhiteElo "2489"]
[BlackElo "2167"]
[WhiteTeam "HUN"]
[BlackTeam "IND"]
[WhiteClock "0:00:21"]
[BlackClock "0:01:27"]

1. e4 {[%clk 0:03:00]}  c6 {[%clk 0:02:59]} 2. d4 {[%clk 0:03:00]}  d5 {[%clk 0:02:56]} 3. e5 {[%clk 0:03:00]}  Qb6 {[%clk 0:02:53]} 4. h4 {[%clk 0:02:48]}  Bf5 {[%clk 0:02:49]} 5. g4 {[%clk 0:02:41]}  Bd7 {[%clk 0:02:49]} 6. f4 {[%clk 0:02:36]}  h5 {[%clk 0:02:42]} 7. gxh5 {[%clk 0:02:29]}  Nh6 {[%clk 0:02:40]} 8. Bd3 {[%clk 0:02:23]}  Qxd4 {[%clk 0:02:30]} 9. Nf3 {[%clk 0:02:22]}  Qb6 {[%clk 0:02:29]} 10. Nc3 {[%clk 0:01:59]}  Bg4 {[%clk 0:02:24]} 11. Qe2 {[%clk 0:01:49]}  e6 {[%clk 0:02:23]} 12. Rb1 {[%clk 0:01:46]}  Nf5 {[%clk 0:02:19]} 13. Bxf5 {[%clk 0:01:45]}  Bxf5 {[%clk 0:02:17]} 14. Be3 {[%clk 0:01:46]}  Qa5 {[%clk 0:02:07]} 15. Ng5 {[%clk 0:01:34]}  Bb4 {[%clk 0:02:03]} 16. Bd2 {[%clk 0:01:20]}  Bxc2 {[%clk 0:02:00]} 17. Rc1 {[%clk 0:01:19]}  Bf5 {[%clk 0:02:00]} 18. a3 {[%clk 0:01:15]}  Bxc3 {[%clk 0:02:00]} 19. Bxc3 {[%clk 0:01:15]}  Qa6 {[%clk 0:02:00]} 20. Qf3 {[%clk 0:01:04]}  Qd3 {[%clk 0:02:00]} 21. Qxd3 {[%clk 0:01:00]}  Bxd3 {[%clk 0:01:59]} 22. Kd2 {[%clk 0:01:01]}  Bf5 {[%clk 0:01:57]} 23. Rhg1 {[%clk 0:01:00]}  Rxh5 {[%clk 0:01:56]} 24. Nf3 {[%clk 0:00:58]}  g6 {[%clk 0:01:53]} 25. Ke3 {[%clk 0:00:56]}  Nd7 {[%clk 0:01:52]} 26. b4 {[%clk 0:00:53]}  Nb6 {[%clk 0:01:51]} 27. Kf2 {[%clk 0:00:45]}  Be4 {[%clk 0:01:47]} 28. Rg5 {[%clk 0:00:39]}  Bxf3 {[%clk 0:01:46]} 29. Kxf3 {[%clk 0:00:39]}  Rxh4 {[%clk 0:01:46]} 30. f5 {[%clk 0:00:39]}  exf5 {[%clk 0:01:44]} 31. e6 {[%clk 0:00:37]}  Nc4 {[%clk 0:01:33]} 32. Re1 {[%clk 0:00:24]}  Rh3+ {[%clk 0:01:30]} 33. Rg3 {[%clk 0:00:22]}  Rxg3+ {[%clk 0:01:30]} 34. Kxg3 {[%clk 0:00:23]}  Nd6 {[%clk 0:01:27]} 35. exf7+ {[%clk 0:00:23]}  Kxf7 {[%clk 0:01:27]} 36. Rh1 {[%clk 0:00:21]}  Ne4+ {[%clk 0:01:27]} 0-1

[Event "November 21 Early 2023"]
[Site "https://www.chess.com"]
[Date "2023.11.21"]
[Round "3"]
[White "Goswami, Vedant"]
[Black "Akhmedinov, Satbek"]
[Result "1/2-1/2"]
[Board "192"]
[TimeControl "180+1"]
[WhiteFideId "5003725"]
[BlackFideId "13714287"]
[WhiteElo "2011"]
[BlackElo "2120"]
[WhiteTeam "IND"]
[BlackTeam "KAZ"]
[WhiteClock "0:00:03"]
[BlackClock "0:02:06"]

1. Nc3 {[%clk 0:02:57]}  Nf6 {[%clk 0:03:00]} 2. e3 {[%clk 0:02:54]}  e5 {[%clk 0:03:00]} 3. Nf3 {[%clk 0:02:53]}  e4 {[%clk 0:03:00]} 4. Nd4 {[%clk 0:02:52]}  c5 {[%clk 0:03:00]} 5. Nb3 {[%clk 0:02:50]}  Nc6 {[%clk 0:03:00]} 6. d3 {[%clk 0:02:51]}  exd3 {[%clk 0:03:00]} 7. cxd3 {[%clk 0:02:50]}  d6 {[%clk 0:02:59]} 8. d4 {[%clk 0:02:50]}  Be7 {[%clk 0:02:53]} 9. Be2 {[%clk 0:02:50]}  O-O {[%clk 0:02:53]} 10. O-O {[%clk 0:02:50]}  b6 {[%clk 0:02:53]} 11. Bf3 {[%clk 0:02:48]}  Bb7 {[%clk 0:02:53]} 12. Re1 {[%clk 0:02:45]}  Rc8 {[%clk 0:02:53]} 13. Bd2 {[%clk 0:02:04]}  Qd7 {[%clk 0:02:48]} 14. Rc1 {[%clk 0:01:50]}  d5 {[%clk 0:02:36]} 15. dxc5 {[%clk 0:01:39]}  bxc5 {[%clk 0:02:36]} 16. Na4 {[%clk 0:01:39]}  c4 {[%clk 0:02:28]} 17. Nbc5 {[%clk 0:01:36]}  Qc7 {[%clk 0:02:27]} 18. b3 {[%clk 0:01:30]}  Ne5 {[%clk 0:02:24]} 19. Nxb7 {[%clk 0:01:11]}  Qxb7 {[%clk 0:02:25]} 20. bxc4 {[%clk 0:00:57]}  Nd3 {[%clk 0:02:25]} 21. Rb1 {[%clk 0:00:51]}  Qd7 {[%clk 0:02:25]} 22. Rf1 {[%clk 0:00:37]}  dxc4 {[%clk 0:02:25]} 23. Nc3 {[%clk 0:00:37]}  Bb4 {[%clk 0:02:24]} 24. Qc2 {[%clk 0:00:36]}  Bxc3 {[%clk 0:02:22]} 25. Bxc3 {[%clk 0:00:35]}  Nd5 {[%clk 0:02:22]} 26. Bxd5 {[%clk 0:00:13]}  Qxd5 {[%clk 0:02:23]} 27. h3 {[%clk 0:00:11]}  a5 {[%clk 0:02:22]} 28. Rfd1 {[%clk 0:00:10]}  Qc5 {[%clk 0:02:21]} 29. Bd4 {[%clk 0:00:10]}  Qa3 {[%clk 0:02:20]} 30. Rd2 {[%clk 0:00:03]}  Rfd8 {[%clk 0:02:19]} 31. Rbd1 {[%clk 0:00:03]}  Nb4 {[%clk 0:02:17]} 32. Qc3 {[%clk 0:00:03]}  Qxc3 {[%clk 0:02:17]} 33. Bxc3 {[%clk 0:00:03]}  Rxd2 {[%clk 0:02:18]} 34. Rxd2 {[%clk 0:00:03]}  Kf8 {[%clk 0:02:17]} 35. Kf1 {[%clk 0:00:03]}  Ke8 {[%clk 0:02:17]} 36. Ke2 {[%clk 0:00:03]}  f6 {[%clk 0:02:17]} 37. Rd4 {[%clk 0:00:03]}  Ke7 {[%clk 0:02:16]} 38. Rd2 {[%clk 0:00:02]}  Ke6 {[%clk 0:02:16]} 39. a3 {[%clk 0:00:02]}  Nd5 {[%clk 0:02:17]} 40. Bxa5 {[%clk 0:00:02]}  c3 {[%clk 0:02:17]} 41. Rc2 {[%clk 0:00:02]}  Ke5 {[%clk 0:02:14]} 42. Bb4 {[%clk 0:00:03]}  g5 {[%clk 0:02:11]} 43. f3 {[%clk 0:00:03]}  h5 {[%clk 0:02:11]} 44. Kd3 {[%clk 0:00:03]}  Rd8 {[%clk 0:02:11]} 45. Ke2 {[%clk 0:00:03]}  Rc8 {[%clk 0:02:11]} 46. Kd3 {[%clk 0:00:03]}  Rd8 {[%clk 0:02:12]} 47. Ke2 {[%clk 0:00:03]}  Rc8 {[%clk 0:02:06]} 1/2-1/2

[Event "November 21 Early 2023"]
[Site "https://www.chess.com"]
[Date "2023.11.21"]
[Round "3"]
[White "Golubev, Mikhail"]
[Black "rikchessmx"]
[Result "1-0"]
[Board "193"]
[TimeControl "180+1"]
[WhiteFideId "14100983"]
[WhiteElo "2352"]
[BlackElo "2318"]
[WhiteTeam "UKR"]
[WhiteClock "0:00:37"]
[BlackClock "0:01:26"]

1. e4 {[%clk 0:03:00]}  e5 {[%clk 0:02:59]} 2. Nf3 {[%clk 0:03:00]}  Nc6 {[%clk 0:02:59]} 3. Bc4 {[%clk 0:03:00]}  Bc5 {[%clk 0:02:58]} 4. c3 {[%clk 0:02:59]}  Qf6 {[%clk 0:02:57]} 5. d4 {[%clk 0:03:00]}  exd4 {[%clk 0:02:53]} 6. O-O {[%clk 0:03:00]}  dxc3 {[%clk 0:02:53]} 7. Nxc3 {[%clk 0:03:00]}  Nge7 {[%clk 0:02:51]} 8. Nd5 {[%clk 0:02:49]}  Nxd5 {[%clk 0:02:47]} 9. exd5 {[%clk 0:02:50]}  Ne7 {[%clk 0:02:47]} 10. Bg5 {[%clk 0:02:50]}  Qg6 {[%clk 0:02:46]} 11. Re1 {[%clk 0:02:47]}  f6 {[%clk 0:02:46]} 12. Bf4 {[%clk 0:02:37]}  d6 {[%clk 0:02:46]} 13. Qe2 {[%clk 0:02:29]}  Qf7 {[%clk 0:02:44]} 14. Bb5+ {[%clk 0:02:21]}  Bd7 {[%clk 0:02:43]} 15. Bxd7+ {[%clk 0:02:21]}  Kxd7 {[%clk 0:02:43]} 16. b4 {[%clk 0:02:13]}  Bb6 {[%clk 0:02:40]} 17. Qb5+ {[%clk 0:02:02]}  Kc8 {[%clk 0:02:29]} 18. Rad1 {[%clk 0:01:26]}  a6 {[%clk 0:02:27]} 19. Qc4 {[%clk 0:01:24]}  Ng6 {[%clk 0:02:26]} 20. Bxd6 {[%clk 0:01:21]}  Kb8 {[%clk 0:02:25]} 21. Bg3 {[%clk 0:01:18]}  h5 {[%clk 0:02:16]} 22. h4 {[%clk 0:01:12]}  Ka7 {[%clk 0:02:07]} 23. a4 {[%clk 0:01:11]}  a5 {[%clk 0:02:07]} 24. Nd4 {[%clk 0:01:08]}  Rae8 {[%clk 0:02:02]} 25. Nb5+ {[%clk 0:00:54]}  Kb8 {[%clk 0:01:54]} 26. bxa5 {[%clk 0:00:48]}  Bxa5 {[%clk 0:01:50]} 27. Qc5 {[%clk 0:00:48]}  Rxe1+ {[%clk 0:01:40]} 28. Rxe1 {[%clk 0:00:47]}  Bxe1 {[%clk 0:01:40]} 29. Bxc7+ {[%clk 0:00:45]}  Kc8 {[%clk 0:01:40]} 30. Nd6+ {[%clk 0:00:43]}  Kd7 {[%clk 0:01:36]} 31. Nxf7 {[%clk 0:00:44]}  Re8 {[%clk 0:01:32]} 32. Qd6+ {[%clk 0:00:41]}  Kc8 {[%clk 0:01:32]} 33. Bb6 {[%clk 0:00:37]}  Re7 {[%clk 0:01:26]} 34. Qd8# {[%clk 0:00:37]} 1-0

[Event "November 21 Early 2023"]
[Site "https://www.chess.com"]
[Date "2023.11.21"]
[Round "3"]
[White "Rosner, Jonas"]
[Black "Vlasova, Nataliya"]
[Result "1-0"]
[Board "194"]
[TimeControl "180+1"]
[WhiteFideId "24608513"]
[BlackFideId "4122682"]
[WhiteElo "2394"]
[BlackElo "1939"]
[WhiteTeam "GER"]
[BlackTeam "RUS"]
[WhiteClock "0:01:18"]
[BlackClock "0:00:24"]

1. e4 {[%clk 0:02:53]}  d5 {[%clk 0:02:57]} 2. exd5 {[%clk 0:02:53]}  Qxd5 {[%clk 0:02:58]} 3. Nf3 {[%clk 0:02:52]}  Bg4 {[%clk 0:02:58]} 4. Be2 {[%clk 0:02:52]}  Nc6 {[%clk 0:02:58]} 5. d4 {[%clk 0:02:53]}  O-O-O {[%clk 0:02:57]} 6. c4 {[%clk 0:02:52]}  Qh5 {[%clk 0:02:46]} 7. Be3 {[%clk 0:02:51]}  e5 {[%clk 0:02:45]} 8. d5 {[%clk 0:02:49]}  Bb4+ {[%clk 0:02:44]} 9. Nbd2 {[%clk 0:02:42]}  Nce7 {[%clk 0:02:35]} 10. h3 {[%clk 0:02:29]}  Nf6 {[%clk 0:02:25]} 11. a3 {[%clk 0:02:26]}  Bxd2+ {[%clk 0:02:23]} 12. Nxd2 {[%clk 0:02:27]}  Bxe2 {[%clk 0:02:22]} 13. Qxe2 {[%clk 0:02:28]}  Qg6 {[%clk 0:02:20]} 14. O-O {[%clk 0:02:25]}  Nf5 {[%clk 0:02:20]} 15. Rad1 {[%clk 0:02:07]}  Nh4 {[%clk 0:02:17]} 16. f3 {[%clk 0:02:07]}  Nh5 {[%clk 0:02:15]} 17. Ne4 {[%clk 0:01:59]}  f5 {[%clk 0:02:12]} 18. Bg5 {[%clk 0:01:57]}  Nf4 {[%clk 0:01:48]} 19. Bxf4 {[%clk 0:01:44]}  exf4 {[%clk 0:01:36]} 20. Nc5 {[%clk 0:01:43]}  Rhe8 {[%clk 0:01:30]} 21. Ne6 {[%clk 0:01:41]}  Rd6 {[%clk 0:01:13]} 22. Qf2 {[%clk 0:01:40]}  Qh6 {[%clk 0:01:09]} 23. Qxa7 {[%clk 0:01:36]}  Qf6 {[%clk 0:00:41]} 24. Qa8+ {[%clk 0:01:22]}  Kd7 {[%clk 0:00:39]} 25. Nc5+ {[%clk 0:01:22]}  Ke7 {[%clk 0:00:38]} 26. Rfe1+ {[%clk 0:01:23]}  Re6 {[%clk 0:00:28]} 27. Rxe6+ {[%clk 0:01:21]}  Qxe6 {[%clk 0:00:25]} 28. Qxe8+ {[%clk 0:01:20]}  Kxe8 {[%clk 0:00:24]} 29. Nxe6 {[%clk 0:01:18]} 1-0

[Event "November 21 Early 2023"]
[Site "https://www.chess.com"]
[Date "2023.11.21"]
[Round "3"]
[White "Eggleston, Thomas A"]
[Black "Dilmukhametov, Artur"]
[Result "1-0"]
[Board "195"]
[TimeControl "180+1"]
[WhiteFideId "412139"]
[BlackFideId "24179922"]
[WhiteElo "2169"]
[BlackElo "2176"]
[WhiteTeam "ENG"]
[BlackTeam "RUS"]
[WhiteClock "0:01:03"]
[BlackClock "0:00:00"]

1. e4 {[%clk 0:03:00]}  c6 {[%clk 0:02:59]} 2. Nf3 {[%clk 0:03:00]}  d5 {[%clk 0:02:59]} 3. d3 {[%clk 0:03:00]}  dxe4 {[%clk 0:02:58]} 4. dxe4 {[%clk 0:03:01]}  Qxd1+ {[%clk 0:02:58]} 5. Kxd1 {[%clk 0:03:02]}  Bg4 {[%clk 0:02:56]} 6. c3 {[%clk 0:03:01]}  Nd7 {[%clk 0:02:56]} 7. Kc2 {[%clk 0:03:00]}  O-O-O {[%clk 0:02:56]} 8. a4 {[%clk 0:02:54]}  e5 {[%clk 0:02:46]} 9. b4 {[%clk 0:02:52]}  f6 {[%clk 0:02:32]} 10. Bd3 {[%clk 0:02:49]}  Nh6 {[%clk 0:01:48]} 11. Be3 {[%clk 0:02:42]}  Kb8 {[%clk 0:01:47]} 12. Na3 {[%clk 0:02:35]}  Be6 {[%clk 0:01:45]} 13. Bxh6 {[%clk 0:02:24]}  gxh6 {[%clk 0:01:45]} 14. Bc4 {[%clk 0:02:24]}  Bxc4 {[%clk 0:01:33]} 15. Nxc4 {[%clk 0:02:25]}  Rg8 {[%clk 0:01:30]} 16. g3 {[%clk 0:02:25]}  Nb6 {[%clk 0:01:19]} 17. Ne3 {[%clk 0:02:23]}  Rg7 {[%clk 0:01:13]} 18. Nh4 {[%clk 0:02:19]}  Rgd7 {[%clk 0:01:12]} 19. a5 {[%clk 0:02:04]}  Rd2+ {[%clk 0:01:07]} 20. Kb3 {[%clk 0:02:04]}  Nc8 {[%clk 0:01:05]} 21. Rad1 {[%clk 0:02:00]}  Ne7 {[%clk 0:00:56]} 22. Rxd2 {[%clk 0:01:59]}  Rxd2 {[%clk 0:00:57]} 23. Rd1 {[%clk 0:01:57]}  Rxd1 {[%clk 0:00:57]} 24. Nxd1 {[%clk 0:01:57]}  Kc7 {[%clk 0:00:53]} 25. Ne3 {[%clk 0:01:57]}  Ng6 {[%clk 0:00:50]} 26. Nhf5 {[%clk 0:01:49]}  b5 {[%clk 0:00:38]} 27. axb6+ {[%clk 0:01:46]}  axb6 {[%clk 0:00:39]} 28. b5 {[%clk 0:01:41]}  cxb5 {[%clk 0:00:35]} 29. Nd5+ {[%clk 0:01:41]}  Kc6 {[%clk 0:00:18]} 30. Nxf6 {[%clk 0:01:41]}  Bc5 {[%clk 0:00:12]} 31. Nxh6 {[%clk 0:01:22]}  Bxf2 {[%clk 0:00:11]} 32. Nhg4 {[%clk 0:01:19]}  Bg1 {[%clk 0:00:08]} 33. Nxh7 {[%clk 0:01:12]}  Kd6 {[%clk 0:00:03]} 34. Ng5 {[%clk 0:01:04]}  Kc5 {[%clk 0:00:00]} 35. h4 {[%clk 0:01:03]} 1-0

[Event "November 21 Early 2023"]
[Site "https://www.chess.com"]
[Date "2023.11.21"]
[Round "3"]
[White "Der_Balak_3Halak"]
[Black "Ongut, Tamas Gunes"]
[Result "1-0"]
[Board "198"]
[TimeControl "180+1"]
[BlackFideId "770280"]
[WhiteElo "2296"]
[BlackElo "2148"]
[BlackTeam "HUN"]
[WhiteClock "0:00:54"]
[BlackClock "0:01:01"]

1. e4 {[%clk 0:02:58]}  c5 {[%clk 0:02:59]} 2. Nf3 {[%clk 0:02:58]}  d6 {[%clk 0:02:59]} 3. Bb5+ {[%clk 0:02:58]}  Nd7 {[%clk 0:02:59]} 4. O-O {[%clk 0:02:56]}  a6 {[%clk 0:02:43]} 5. Bxd7+ {[%clk 0:02:55]}  Bxd7 {[%clk 0:02:43]} 6. c3 {[%clk 0:02:56]}  Nf6 {[%clk 0:02:42]} 7. Re1 {[%clk 0:02:56]}  c4 {[%clk 0:02:19]} 8. b3 {[%clk 0:02:54]}  Bc6 {[%clk 0:02:15]} 9. e5 {[%clk 0:02:46]}  dxe5 {[%clk 0:02:07]} 10. Nxe5 {[%clk 0:02:42]}  Qd5 {[%clk 0:02:08]} 11. Nxc6 {[%clk 0:02:40]}  Qxc6 {[%clk 0:02:09]} 12. Ba3 {[%clk 0:02:27]}  O-O-O {[%clk 0:01:52]} 13. Qe2 {[%clk 0:02:08]}  cxb3 {[%clk 0:01:36]} 14. axb3 {[%clk 0:02:04]}  e5 {[%clk 0:01:34]} 15. Qxe5 {[%clk 0:01:48]}  Bd6 {[%clk 0:01:25]} 16. Bxd6 {[%clk 0:01:42]}  Rhe8 {[%clk 0:01:21]} 17. Qf5+ {[%clk 0:01:13]}  Qd7 {[%clk 0:01:12]} 18. Qc5+ {[%clk 0:00:53]}  Qc6 {[%clk 0:01:06]} 19. Qxc6+ {[%clk 0:00:53]}  bxc6 {[%clk 0:01:01]} 20. Rxe8 {[%clk 0:00:54]} 1-0

[Event "November 21 Early 2023"]
[Site "https://www.chess.com"]
[Date "2023.11.21"]
[Round "3"]
[White "Nilsen, Tobias Lang"]
[Black "Zampronha, Wladimir Camilo"]
[Result "0-1"]
[Board "199"]
[TimeControl "180+1"]
[WhiteFideId "1521624"]
[BlackFideId "2103087"]
[WhiteElo "2221"]
[BlackElo "2055"]
[WhiteTeam "NOR"]
[BlackTeam "BRA"]
[WhiteClock "0:01:19"]
[BlackClock "0:00:24"]

1. d4 {[%clk 0:03:00]}  Nf6 {[%clk 0:02:59]} 2. Nc3 {[%clk 0:03:01]}  d5 {[%clk 0:02:58]} 3. Bf4 {[%clk 0:03:01]}  a6 {[%clk 0:02:57]} 4. e3 {[%clk 0:03:00]}  e6 {[%clk 0:02:52]} 5. Bd3 {[%clk 0:03:00]}  c5 {[%clk 0:02:52]} 6. Nf3 {[%clk 0:02:50]}  Nc6 {[%clk 0:02:51]} 7. O-O {[%clk 0:02:50]}  Bd6 {[%clk 0:02:48]} 8. dxc5 {[%clk 0:02:37]}  Bxf4 {[%clk 0:02:44]} 9. exf4 {[%clk 0:02:37]}  Qa5 {[%clk 0:02:43]} 10. Qe2 {[%clk 0:02:28]}  Qxc5 {[%clk 0:02:41]} 11. a3 {[%clk 0:02:28]}  O-O {[%clk 0:02:41]} 12. Rad1 {[%clk 0:02:28]}  Re8 {[%clk 0:02:34]} 13. Ne5 {[%clk 0:02:27]}  Bd7 {[%clk 0:02:14]} 14. Na4 {[%clk 0:02:16]}  Qe7 {[%clk 0:02:12]} 15. Nb6 {[%clk 0:02:15]}  Rad8 {[%clk 0:02:12]} 16. Nbxd7 {[%clk 0:02:16]}  Nxd7 {[%clk 0:02:11]} 17. Rde1 {[%clk 0:02:13]}  Ncxe5 {[%clk 0:01:46]} 18. fxe5 {[%clk 0:02:12]}  Nc5 {[%clk 0:01:46]} 19. f4 {[%clk 0:02:12]}  Nxd3 {[%clk 0:01:46]} 20. cxd3 {[%clk 0:02:13]}  Rc8 {[%clk 0:01:45]} 21. f5 {[%clk 0:02:06]}  exf5 {[%clk 0:01:43]} 22. Rxf5 {[%clk 0:02:07]}  Qc5+ {[%clk 0:01:41]} 23. Qf2 {[%clk 0:02:05]}  Qxf2+ {[%clk 0:01:36]} 24. Rxf2 {[%clk 0:02:06]}  f6 {[%clk 0:01:34]} 25. Rfe2 {[%clk 0:02:05]}  Kf7 {[%clk 0:01:27]} 26. exf6 {[%clk 0:02:00]}  Rxe2 {[%clk 0:01:28]} 27. Rxe2 {[%clk 0:02:01]}  Kxf6 {[%clk 0:01:28]} 28. Kf2 {[%clk 0:02:02]}  Rc7 {[%clk 0:01:20]} 29. Kf3 {[%clk 0:02:01]}  Rf7 {[%clk 0:01:19]} 30. Rc2 {[%clk 0:02:00]}  Ke5+ {[%clk 0:01:18]} 31. Ke3 {[%clk 0:02:00]}  d4+ {[%clk 0:01:18]} 32. Ke2 {[%clk 0:02:01]}  Re7 {[%clk 0:01:14]} 33. g3 {[%clk 0:01:53]}  Kd5+ {[%clk 0:01:13]} 34. Kd2 {[%clk 0:01:53]}  Rf7 {[%clk 0:01:11]} 35. Ke2 {[%clk 0:01:53]}  Re7+ {[%clk 0:01:11]} 36. Kf2 {[%clk 0:01:53]}  Rf7+ {[%clk 0:01:10]} 37. Kg2 {[%clk 0:01:53]}  Re7 {[%clk 0:01:11]} 38. h4 {[%clk 0:01:43]}  b5 {[%clk 0:01:08]} 39. Kf3 {[%clk 0:01:36]}  Re3+ {[%clk 0:01:07]} 40. Kg4 {[%clk 0:01:36]}  Rxd3 {[%clk 0:01:08]} 41. Rc7 {[%clk 0:01:36]}  Rb3 {[%clk 0:01:07]} 42. Rxg7 {[%clk 0:01:36]}  Rxb2 {[%clk 0:01:04]} 43. Rxh7 {[%clk 0:01:36]}  d3 {[%clk 0:01:03]} 44. Rd7+ {[%clk 0:01:36]}  Kc4 {[%clk 0:00:57]} 45. Kh3 {[%clk 0:01:34]}  Rb1 {[%clk 0:00:52]} 46. h5 {[%clk 0:01:21]}  Rh1+ {[%clk 0:00:49]} 47. Kg4 {[%clk 0:01:22]}  a5 {[%clk 0:00:50]} 48. Kg5 {[%clk 0:01:18]}  b4 {[%clk 0:00:50]} 49. axb4 {[%clk 0:01:19]}  axb4 {[%clk 0:00:50]} 50. g4 {[%clk 0:01:18]}  b3 {[%clk 0:00:50]} 51. Rc7+ {[%clk 0:01:19]}  Kb4 {[%clk 0:00:44]} 52. Rd7 {[%clk 0:01:16]}  b2 {[%clk 0:00:43]} 53. Rb7+ {[%clk 0:01:16]}  Kc3 {[%clk 0:00:43]} 54. Rc7+ {[%clk 0:01:16]}  Kd4 {[%clk 0:00:41]} 55. Rd7+ {[%clk 0:01:16]}  Ke5 {[%clk 0:00:40]} 56. Re7+ {[%clk 0:01:14]}  Kd6 {[%clk 0:00:40]} 57. Rb7 {[%clk 0:01:15]}  b1=Q {[%clk 0:00:39]} 58. Rxb1 {[%clk 0:01:16]}  Rxb1 {[%clk 0:00:39]} 59. h6 {[%clk 0:01:17]}  d2 {[%clk 0:00:39]} 60. h7 {[%clk 0:01:17]}  Rh1 {[%clk 0:00:38]} 61. Kg6 {[%clk 0:01:16]}  d1=Q {[%clk 0:00:38]} 62. g5 {[%clk 0:01:16]}  Qd3+ {[%clk 0:00:38]} 63. Kf6 {[%clk 0:01:15]}  Qxh7 {[%clk 0:00:38]} 64. g6 {[%clk 0:01:16]}  Rf1+ {[%clk 0:00:37]} 65. Kg5 {[%clk 0:01:16]}  Qxg6+ {[%clk 0:00:35]} 66. Kxg6 {[%clk 0:01:16]}  Ke5 {[%clk 0:00:35]} 67. Kg5 {[%clk 0:01:17]}  Rg1+ {[%clk 0:00:33]} 68. Kh4 {[%clk 0:01:17]}  Kf5 {[%clk 0:00:29]} 69. Kh3 {[%clk 0:01:18]}  Kf4 {[%clk 0:00:28]} 70. Kh2 {[%clk 0:01:18]}  Rg8 {[%clk 0:00:27]} 71. Kh3 {[%clk 0:01:19]}  Rg7 {[%clk 0:00:24]} 72. Kh4 {[%clk 0:01:19]} 0-1

[Event "November 21 Early 2023"]
[Site "https://www.chess.com"]
[Date "2023.11.21"]
[Round "3"]
[White "Adithya A Chullikkad"]
[Black "Grossboss19"]
[Result "0-1"]
[Board "201"]
[TimeControl "180+1"]
[WhiteFideId "45078734"]
[WhiteElo "2042"]
[BlackElo "2490"]
[WhiteTeam "IND"]
[WhiteClock "0:00:23"]
[BlackClock "0:01:24"]

1. d4 {[%clk 0:03:00]}  Nf6 {[%clk 0:02:54]} 2. Nf3 {[%clk 0:02:59]}  g6 {[%clk 0:02:52]} 3. Bf4 {[%clk 0:02:59]}  Bg7 {[%clk 0:02:51]} 4. Nc3 {[%clk 0:02:59]}  O-O {[%clk 0:02:49]} 5. e4 {[%clk 0:02:59]}  d5 {[%clk 0:02:49]} 6. Bd3 {[%clk 0:02:55]}  dxe4 {[%clk 0:02:38]} 7. Nxe4 {[%clk 0:02:54]}  Nh5 {[%clk 0:02:38]} 8. Be3 {[%clk 0:02:52]}  Nc6 {[%clk 0:02:35]} 9. c3 {[%clk 0:02:49]}  e5 {[%clk 0:02:35]} 10. dxe5 {[%clk 0:02:40]}  Nxe5 {[%clk 0:02:33]} 11. Nxe5 {[%clk 0:02:40]}  Bxe5 {[%clk 0:02:34]} 12. O-O {[%clk 0:02:34]}  Bf5 {[%clk 0:02:30]} 13. Bh6 {[%clk 0:02:27]}  Bxe4 {[%clk 0:02:28]} 14. Bxe4 {[%clk 0:02:23]}  Qh4 {[%clk 0:02:27]} 15. g3 {[%clk 0:02:18]}  Qxe4 {[%clk 0:02:27]} 16. Bxf8 {[%clk 0:02:18]}  Rxf8 {[%clk 0:02:24]} 17. Re1 {[%clk 0:02:17]}  Qf5 {[%clk 0:02:24]} 18. Qd5 {[%clk 0:02:12]}  Bd6 {[%clk 0:02:21]} 19. Qxb7 {[%clk 0:02:08]}  Nf6 {[%clk 0:02:20]} 20. Qg2 {[%clk 0:01:59]}  Rb8 {[%clk 0:02:18]} 21. Re2 {[%clk 0:01:57]}  a5 {[%clk 0:02:12]} 22. Rae1 {[%clk 0:01:48]}  Kg7 {[%clk 0:02:09]} 23. h3 {[%clk 0:01:36]}  h5 {[%clk 0:02:09]} 24. Rd1 {[%clk 0:01:26]}  h4 {[%clk 0:02:07]} 25. g4 {[%clk 0:01:24]}  Qf4 {[%clk 0:02:00]} 26. b3 {[%clk 0:01:13]}  a4 {[%clk 0:01:55]} 27. b4 {[%clk 0:01:11]}  a3 {[%clk 0:01:51]} 28. g5 {[%clk 0:01:06]}  Nh5 {[%clk 0:01:50]} 29. Rd4 {[%clk 0:01:04]}  Qc1+ {[%clk 0:01:50]} 30. Qf1 {[%clk 0:01:02]}  Bh2+ {[%clk 0:01:46]} 31. Kg2 {[%clk 0:01:00]}  Nf4+ {[%clk 0:01:45]} 32. Rxf4 {[%clk 0:00:59]}  Qxf1+ {[%clk 0:01:42]} 33. Kxf1 {[%clk 0:00:58]}  Bxf4 {[%clk 0:01:43]} 34. Re4 {[%clk 0:00:55]}  Bxg5 {[%clk 0:01:43]} 35. f4 {[%clk 0:00:55]}  Bf6 {[%clk 0:01:43]} 36. Rc4 {[%clk 0:00:53]}  Rd8 {[%clk 0:01:40]} 37. Ke2 {[%clk 0:00:52]}  Re8+ {[%clk 0:01:36]} 38. Kf3 {[%clk 0:00:51]}  Re1 {[%clk 0:01:36]} 39. Rxc7 {[%clk 0:00:49]}  Ra1 {[%clk 0:01:35]} 40. b5 {[%clk 0:00:48]}  Rxa2 {[%clk 0:01:36]} 41. b6 {[%clk 0:00:49]}  Rb2 {[%clk 0:01:36]} 42. Ra7 {[%clk 0:00:47]}  Rxb6 {[%clk 0:01:31]} 43. Rxa3 {[%clk 0:00:46]}  Rc6 {[%clk 0:01:31]} 44. Kg4 {[%clk 0:00:44]}  Rc4 {[%clk 0:01:29]} 45. Kf3 {[%clk 0:00:30]}  Rxc3+ {[%clk 0:01:29]} 46. Rxc3 {[%clk 0:00:31]}  Bxc3 {[%clk 0:01:29]} 47. Kg4 {[%clk 0:00:31]}  f5+ {[%clk 0:01:29]} 48. Kxh4 {[%clk 0:00:31]}  Be1+ {[%clk 0:01:24]} 49. Kg5 {[%clk 0:00:30]}  Bf2 {[%clk 0:01:24]} 50. h4 {[%clk 0:00:23]}  Bc5 {[%clk 0:01:24]} 0-1

[Event "November 21 Early 2023"]
[Site "https://www.chess.com"]
[Date "2023.11.21"]
[Round "3"]
[White "FunnyDuck66"]
[Black "Tharushi, T H D Niklesha"]
[Result "0-1"]
[Board "202"]
[TimeControl "180+1"]
[BlackFideId "9918264"]
[WhiteElo "2487"]
[BlackElo "1577"]
[BlackTeam "SRI"]
[WhiteClock "0:00:16"]
[BlackClock "0:01:43"]

1. d4 {[%clk 0:03:00]}  Nf6 {[%clk 0:02:55]} 2. Nf3 {[%clk 0:03:01]}  e6 {[%clk 0:02:51]} 3. Bg5 {[%clk 0:03:00]}  Be7 {[%clk 0:02:47]} 4. Nbd2 {[%clk 0:02:58]}  d5 {[%clk 0:02:47]} 5. e3 {[%clk 0:02:57]}  c5 {[%clk 0:02:47]} 6. c3 {[%clk 0:02:56]}  Nc6 {[%clk 0:02:47]} 7. Bd3 {[%clk 0:02:57]}  h6 {[%clk 0:02:46]} 8. Bh4 {[%clk 0:02:56]}  b6 {[%clk 0:02:45]} 9. O-O {[%clk 0:02:54]}  Bb7 {[%clk 0:02:45]} 10. Ne5 {[%clk 0:02:55]}  Nxe5 {[%clk 0:02:35]} 11. dxe5 {[%clk 0:02:56]}  Nd7 {[%clk 0:02:36]} 12. Bxe7 {[%clk 0:02:55]}  Qxe7 {[%clk 0:02:37]} 13. f4 {[%clk 0:02:56]}  c4 {[%clk 0:02:35]} 14. Bc2 {[%clk 0:02:50]}  Qc5 {[%clk 0:02:35]} 15. Qe2 {[%clk 0:02:47]}  g5 {[%clk 0:02:35]} 16. Kh1 {[%clk 0:02:43]}  O-O-O {[%clk 0:02:32]} 17. Nf3 {[%clk 0:02:40]}  g4 {[%clk 0:02:28]} 18. Nd4 {[%clk 0:02:39]}  h5 {[%clk 0:02:28]} 19. b4 {[%clk 0:02:33]}  Qe7 {[%clk 0:02:25]} 20. a4 {[%clk 0:02:33]}  Rdg8 {[%clk 0:02:21]} 21. a5 {[%clk 0:02:30]}  h4 {[%clk 0:02:20]} 22. e4 {[%clk 0:02:28]}  h3 {[%clk 0:02:07]} 23. g3 {[%clk 0:02:22]}  f6 {[%clk 0:02:07]} 24. exf6 {[%clk 0:02:05]}  Nxf6 {[%clk 0:02:06]} 25. e5 {[%clk 0:02:05]}  Nd7 {[%clk 0:02:04]} 26. axb6 {[%clk 0:02:03]}  axb6 {[%clk 0:02:04]} 27. Ra7 {[%clk 0:02:01]}  Nb8 {[%clk 0:01:56]} 28. Rfa1 {[%clk 0:01:43]}  Qe8 {[%clk 0:01:50]} 29. Kg1 {[%clk 0:01:31]}  Nc6 {[%clk 0:01:48]} 30. Nxc6 {[%clk 0:01:26]}  Qxc6 {[%clk 0:01:49]} 31. Ba4 {[%clk 0:01:22]}  b5 {[%clk 0:01:48]} 32. Bc2 {[%clk 0:01:09]}  d4 {[%clk 0:01:46]} 33. Rxb7 {[%clk 0:01:08]}  d3 {[%clk 0:01:45]} 34. Qf2 {[%clk 0:00:16]}  Kxb7 {[%clk 0:01:43]} 0-1